fUST/lending_fUST_20241221
["ID","MTS","AMOUNT","RATE_DAILY","PERIOD"]
[346122325,1734720638357,-479.88965354,0.00021917,6]
[346122328,1734720638367,-163.24775,0.00021917,2]
[346122330,1734720638376,-163.24775,0.00021917,2]
[346122332,1734720638385,-163.24775,0.00021917,2]
[346122334,1734720638394,-163.24775,0.00021917,2]
[346122335,1734720638403,-247.43324955,0.00021917,6]
[346122396,1734720640186,-260.15685075,0.00021917,6]
[346122398,1734720640195,-500.0,0.00021917,6]
[346122400,1734720640205,-500.0,0.00021917,6]
[346122402,1734720640214,-500.0,0.00021917,6]
[346122404,1734720640224,-500.0,0.00021917,6]
[346122406,1734720640233,-500.0,0.00021917,6]
[346122408,1734720640242,-500.0,0.00021917,6]
[346122410,1734720640251,-500.0,0.00021917,6]
[346122412,1734720640261,-500.0,0.00021917,6]
[346122415,1734720640270,-447.88859939,0.00021917,6]
[346122417,1734720640286,-52.11140061,0.00021917,6]
[346122419,1734720640297,-500.0,0.00021917,6]
[346122421,1734720640306,-500.0,0.00021917,6]
[346122423,1734720640315,-500.0,0.00021917,6]
[346122425,1734720640324,-500.0,0.00021917,6]
[346122427,1734720640334,-447.88860939,0.00021917,6]
[346122476,1734720643199,-52.11139061,0.00021917,6]
[346122477,1734720643210,-724.79,0.00021917,6]
[346122478,1734720643220,-582.34,0.00021917,6]
[346122479,1734720643230,-907.37,0.00021917,7]
[346122480,1734720643240,-343.1949092,0.00021917,6]
[346122491,1734720648032,151.0,0.000196,2]
[346122498,1734720898831,190.517065,0.00013973,2]
[346122502,1734720980105,7237.88,0.00025,120]
[346122503,1734720992288,838.77,0.00025,60]
[346122516,1734721552132,-1373.84497794,0.00020243,2]
[346122517,1734721555101,-665.72215219,0.00020243,2]
[346122518,1734721555123,-190.517065,0.00020447,2]
[346122519,1734721555143,-703.19307995,0.00020479,2]
[346122523,1734721641306,-198.44573575,0.00020479,2]
[346122524,1734721641331,-151.0,0.000206,4]
[346122525,1734721641356,-490.787,0.0002082,2]
[346122526,1734721641378,-164.6580245,0.00020893,2]
[346122527,1734721641401,-300.0,0.00021079,2]
[346122528,1734721641423,-300.0,0.00021079,2]
[346122529,1734721641444,-7452.78396941,0.0002108,2]
[346122541,1734721822804,171.465358,0.00013973,2]
[346122571,1734721832568,-171.465358,0.00020447,2]
[346122573,1734721832579,-672.205567,0.00020857,2]
[346122575,1734721832588,-300.0,0.00021079,2]
[346122577,1734721832598,-300.0,0.00021079,2]
[346122579,1734721832607,-1087.5952763,0.0002108,2]
[346122597,1734721838582,-3821.39999955,0.0002108,2]
[346122605,1734721840793,-368.97046807,0.0002108,2]
[346122668,1734721846585,-470.212,0.0002082,2]
[346122670,1734721846595,-3625.06087997,0.0002108,2]
[346122673,1734721846605,-151.0,0.000215,4]
[346122675,1734721846614,-3000.0,0.000218,2]
[346122677,1734721846623,-864.20077679,0.000218,2]
[346122679,1734721846633,-3000.0,0.0002181,2]
[346122680,1734721846642,-676.84788392,0.00021817,2]
[346122683,1734721846651,-3000.0,0.0002182,2]
[346122684,1734721846660,-170.01,0.00021824,2]
[346122687,1734721846669,-3000.0,0.0002183,2]
[346122689,1734721846679,-3000.0,0.0002184,2]
[346122691,1734721846688,-5883.458321,0.0002185,2]
[346122692,1734721846697,-666.0,0.000219,2]
[346122695,1734721846707,-150.0,0.000219,2]
[346122697,1734721846716,-492.0,0.000219,9]
[346122698,1734721846725,-484.19474412,0.00021916,2]
[346122700,1734721846734,-153.0,0.00021916,2]
[346122702,1734721846743,-153.0,0.00021916,2]
[346122704,1734721846753,-23026.72245175,0.00021917,2]
[346122707,1734721846762,-3120.12210972,0.00021917,2]
[346122708,1734721846771,-500.0,0.00021917,2]
[346122711,1734721846780,-267.94060627,0.00021917,2]
[346122713,1734721846789,-553.89248825,0.00021917,6]
[346122715,1734721846799,-500.0,0.00021917,6]
[346122717,1734721846808,-500.0,0.00021917,6]
[346122719,1734721846817,-500.0,0.00021917,6]
[346122720,1734721846826,-500.0,0.00021917,6]
[346122723,1734721846835,-500.0,0.00021917,6]
[346122725,1734721846845,-151.0,0.00021917,2]
[346122726,1734721846854,-151.0,0.00021917,2]
[346122728,1734721846864,-226.038956,0.00021917,2]
[346122731,1734721846873,-500.0,0.00021917,6]
[346122733,1734721846883,-500.0,0.00021917,6]
[346122735,1734721846892,-500.0,0.00021917,6]
[346122736,1734721846901,-501.00962022,0.00021917,6]
[346122737,1734721846911,-500.0,0.00021917,6]
[346122738,1734721846920,-500.0,0.00021917,6]
[346122740,1734721846930,-500.0,0.00021917,6]
[346122741,1734721847083,-500.0,0.00021917,6]
[346122742,1734721847093,-500.0,0.00021917,6]
[346122743,1734721847104,-500.0,0.00021917,6]
[346122744,1734721847114,-500.0,0.00021917,6]
[346122745,1734721847124,-495.0,0.00021917,6]
[346122746,1734721847134,-500.0,0.00021917,6]
[346122747,1734721847144,-500.0,0.00021917,6]
[346122748,1734721847154,-500.0,0.00021917,6]
[346122749,1734721847164,-500.0,0.00021917,6]
[346122750,1734721847174,-500.0,0.00021917,6]
[346122751,1734721847183,-500.0,0.00021917,6]
[346122752,1734721847194,-218.92802672,0.00021917,6]
[346122753,1734721847203,-151.0,0.00021917,2]
[346122754,1734721847212,-151.0,0.00021917,2]
[346122755,1734721847221,-500.0,0.00021917,6]
[346122756,1734721847231,-151.0,0.00021917,2]
[346122757,1734721847240,-500.0,0.00021917,6]
[346122758,1734721847249,-500.0,0.00021917,6]
[346122759,1734721847258,-500.0,0.00021917,6]
[346122760,1734721847267,-500.0,0.00021917,6]
[346122761,1734721847277,-500.0,0.00021917,6]
[346122762,1734721847288,-151.0,0.00021917,2]
[346122763,1734721847298,-151.0,0.00021917,2]
[346122764,1734721847307,-151.0,0.00021917,2]
[346122765,1734721847317,-500.0,0.00021917,6]
[346122766,1734721847327,-570.26,0.00021917,6]
[346122767,1734721847336,-943.53,0.00021917,6]
[346122768,1734721847345,-500.0,0.00021917,6]
[346122769,1734721847355,-500.0,0.00021917,6]
[346122770,1734721847365,-500.0,0.00021917,6]
[346122771,1734721847376,-401.11702692,0.00021917,6]
[346122772,1734721847385,-500.0,0.00021917,6]
[346122773,1734721847394,-500.0,0.00021917,6]
[346122774,1734721847404,-500.0,0.00021917,6]
[346122775,1734721847415,-500.0,0.00021917,6]
[346122776,1734721847424,-539.93542246,0.00021917,6]
[346122777,1734721847434,-500.0,0.00021917,6]
[346122778,1734721847444,-500.0,0.00021917,6]
[346122779,1734721847454,-500.0,0.00021917,6]
[346122780,1734721847463,-500.0,0.00021917,6]
[346122781,1734721847472,-500.0,0.00021917,6]
[346122782,1734721847482,-207.71240534,0.00021917,6]
[346122783,1734721847491,-500.0,0.00021917,6]
[346122784,1734721847501,-500.0,0.00021917,6]
[346122785,1734721847511,-500.0,0.00021917,6]
[346122786,1734721847520,-500.0,0.00021917,6]
[346122787,1734721847529,-500.0,0.00021917,6]
[346122788,1734721847538,-500.0,0.00021917,6]
[346122789,1734721847549,-500.0,0.00021917,6]
[346122790,1734721847559,-500.0,0.00021917,6]
[346122791,1734721847568,-1113.61,0.00021917,6]
[346122792,1734721847578,-500.0,0.00021917,6]
[346122793,1734721847587,-500.0,0.00021917,6]
[346122794,1734721847596,-500.0,0.00021917,6]
[346122795,1734721847606,-500.0,0.00021917,6]
[346122796,1734721847615,-500.0,0.00021917,6]
[346122797,1734721847626,-1329.1,0.00021917,6]
[346122798,1734721847635,-500.0,0.00021917,6]
[346122799,1734721847644,-500.0,0.00021917,6]
[346122800,1734721847655,-642.55,0.00021917,6]
[346122801,1734721847665,-1250.18,0.00021917,6]
[346122802,1734721847674,-500.0,0.00021917,6]
[346122803,1734721847684,-168.0,0.00021917,6]
[346122804,1734721847693,-834.59,0.00021917,6]
[346122805,1734721847703,-500.0,0.00021917,6]
[346122806,1734721847712,-500.0,0.00021917,6]
[346122807,1734721847722,-500.0,0.00021917,6]
[346122808,1734721847731,-500.0,0.00021917,6]
[346122809,1734721847740,-500.0,0.00021917,6]
[346122810,1734721847750,-151.0,0.00021917,2]
[346122811,1734721847759,-151.0,0.00021917,2]
[346122812,1734721847769,-500.0,0.00021917,6]
[346122813,1734721847779,-222.052404,0.00021917,2]
[346122814,1734721847788,-200.0,0.00021917,6]
[346122815,1734721847798,-300.89387254,0.00021917,6]
[346122816,1734721847807,-500.0,0.00021917,6]
[346122817,1734721847818,-500.0,0.00021917,6]
[346122818,1734721847827,-500.0,0.00021917,6]
[346122819,1734721847837,-500.0,0.00021917,6]
[346122820,1734721847846,-1272.36,0.00021917,6]
[346122821,1734721847856,-500.0,0.00021917,6]
[346122822,1734721847865,-507.02186387,0.00021917,6]
[346122823,1734721847875,-500.0,0.00021917,6]
[346122824,1734721847884,-500.0,0.00021917,6]
[346122825,1734721847894,-669.85,0.00021917,6]
[346122826,1734721847904,-1034.42,0.00021917,6]
[346122827,1734721847913,-500.0,0.00021917,6]
[346122828,1734721847923,-500.0,0.00021917,6]
[346122829,1734721847932,-885.35,0.00021917,6]
[346122830,1734721847942,-500.0,0.00021917,6]
[346122831,1734721847951,-584.95,0.00021917,6]
[346122832,1734721847961,-500.0,0.00021917,6]
[346122833,1734721847970,-500.0,0.00021917,6]
[346122834,1734721847980,-500.0,0.00021917,6]
[346122835,1734721847990,-627.35,0.00021917,6]
[346122836,1734721847999,-500.0,0.00021917,6]
[346122837,1734721848010,-500.0,0.00021917,6]
[346122838,1734721848019,-500.0,0.00021917,6]
[346122839,1734721848028,-500.0,0.00021917,6]
[346122840,1734721848038,-990.37,0.00021917,6]
[346122841,1734721848048,-500.0,0.00021917,6]
[346122842,1734721848057,-1366.79,0.00021917,6]
[346122843,1734721848067,-1192.97,0.00021917,6]
[346122844,1734721848076,-777.19,0.00021917,6]
[346122845,1734721848086,-500.0,0.00021917,6]
[346122846,1734721848095,-1279.56,0.00021917,6]
[346122847,1734721848105,-500.0,0.00021917,6]
[346122848,1734721848114,-500.0,0.00021917,6]
[346122849,1734721848124,-500.0,0.00021917,6]
[346122850,1734721848134,-500.0,0.00021917,6]
[346122851,1734721848144,-500.0,0.00021917,6]
[346122852,1734721848154,-500.0,0.00021917,6]
[346122853,1734721848164,-500.0,0.00021917,6]
[346122854,1734721848173,-151.0,0.00021917,2]
[346122855,1734721848183,-151.0,0.00021917,2]
[346122856,1734721848194,-204.706961,0.00021917,2]
[346122857,1734721848204,-524.44,0.00021917,6]
[346122858,1734721848214,-500.0,0.00021917,6]
[346122859,1734721848224,-500.0,0.00021917,6]
[346122860,1734721848233,-500.0,0.00021917,6]
[346122861,1734721848242,-500.0,0.00021917,6]
[346122862,1734721848252,-1820.44,0.00021917,6]
[346122863,1734721848261,-500.0,0.00021917,6]
[346122864,1734721848271,-778.93,0.00021917,6]
[346122865,1734721848280,-151.0,0.00021917,2]
[346122866,1734721848290,-151.0,0.00021917,2]
[346122867,1734721848301,-151.0,0.00021917,2]
[346122868,1734721848311,-1189.18,0.00021917,6]
[346122869,1734721848322,-500.0,0.00021917,6]
[346122870,1734721848332,-629.57,0.00021917,6]
[346122871,1734721848341,-500.0,0.00021917,6]
[346122872,1734721848350,-500.0,0.00021917,6]
[346122873,1734721848360,-500.0,0.00021917,6]
[346122874,1734721848371,-500.0,0.00021917,6]
[346122875,1734721848383,-342.59447154,0.00021917,6]
[346122876,1734721848392,-500.0,0.00021917,6]
[346122877,1734721848402,-500.0,0.00021917,6]
[346122878,1734721848412,-821.9,0.00021917,6]
[346122879,1734721848422,-500.0,0.00021917,6]
[346122880,1734721848431,-500.0,0.00021917,6]
[346122881,1734721848441,-2400.54,0.00021917,6]
[346122882,1734721848451,-556.45,0.00021917,6]
[346122883,1734721848460,-500.0,0.00021917,6]
[346122884,1734721848470,-995.06,0.00021917,6]
[346122885,1734721848479,-500.0,0.00021917,6]
[346122886,1734721848489,-500.0,0.00021917,6]
[346122887,1734721848498,-500.0,0.00021917,6]
[346122888,1734721848508,-500.0,0.00021917,6]
[346122889,1734721848517,-1103.55,0.00021917,6]
[346122890,1734721848528,-500.0,0.00021917,6]
[346122891,1734721848538,-500.0,0.00021917,6]
[346122892,1734721848549,-500.0,0.00021917,6]
[346122893,1734721848559,-500.0,0.00021917,6]
[346122894,1734721848568,-500.0,0.00021917,6]
[346122895,1734721848578,-151.0,0.00021917,2]
[346122896,1734721848588,-160.528971,0.00021917,2]
[346122897,1734721848597,-875.58,0.00021917,6]
[346122898,1734721848606,-500.0,0.00021917,6]
[346122899,1734721848615,-500.0,0.00021917,6]
[346122900,1734721848625,-500.0,0.00021917,6]
[346122901,1734721848637,-500.0,0.00021917,6]
[346122902,1734721848646,-151.0,0.00021917,2]
[346122903,1734721848655,-151.0,0.00021917,2]
[346122904,1734721848665,-151.0,0.00021917,2]
[346122905,1734721848674,-500.0,0.00021917,6]
[346122906,1734721848685,-1340.6,0.00021917,6]
[346122907,1734721848694,-500.0,0.00021917,6]
[346122908,1734721848704,-500.0,0.00021917,6]
[346122909,1734721848714,-500.0,0.00021917,6]
[346122910,1734721848723,-500.0,0.00021917,6]
[346122911,1734721848733,-500.0,0.00021917,6]
[346122912,1734721848743,-1069.63,0.00021917,6]
[346122913,1734721848752,-500.0,0.00021917,6]
[346122914,1734721848762,-151.0,0.00021917,2]
[346122915,1734721848771,-500.0,0.00021917,6]
[346122916,1734721848781,-151.0,0.00021917,2]
[346122917,1734721848792,-151.0,0.00021917,2]
[346122918,1734721848802,-151.0,0.00021917,2]
[346122919,1734721848812,-151.0,0.00021917,2]
[346122920,1734721848821,-151.0,0.00021917,2]
[346122921,1734721848831,-500.0,0.00021917,6]
[346122922,1734721848841,-500.0,0.00021917,6]
[346122923,1734721848850,-500.0,0.00021917,6]
[346122924,1734721848859,-234.168012,0.00021917,2]
[346122925,1734721848869,-234.168012,0.00021917,2]
[346122926,1734721848878,-1882.55,0.00021917,6]
[346122927,1734721848887,-234.168012,0.00021917,2]
[346122928,1734721848897,-500.0,0.00021917,6]
[346122929,1734721848907,-500.0,0.00021917,6]
[346122930,1734721848917,-234.168012,0.00021917,2]
[346122931,1734721848926,-234.168012,0.00021917,2]
[346122932,1734721848935,-234.168012,0.00021917,2]
[346122933,1734721848945,-500.0,0.00021917,6]
[346122934,1734721848955,-500.0,0.00021917,6]
[346122935,1734721848964,-500.0,0.00021917,6]
[346122936,1734721848974,-500.0,0.00021917,6]
[346122937,1734721848984,-718.82,0.00021917,6]
[346122938,1734721848993,-500.0,0.00021917,6]
[346122939,1734721849002,-9837.59,0.00021917,6]
[346122940,1734721849011,-500.0,0.00021917,6]
[346122941,1734721849020,-500.0,0.00021917,6]
[346122942,1734721849030,-500.0,0.00021917,6]
[346122943,1734721849039,-500.0,0.00021917,6]
[346122944,1734721849049,-500.0,0.00021917,6]
[346122945,1734721849058,-290.287194,0.00021917,2]
[346122946,1734721849068,-290.287194,0.00021917,2]
[346122947,1734721849077,-290.287194,0.00021917,2]
[346122948,1734721849087,-290.287194,0.00021917,2]
[346122949,1734721849097,-290.287194,0.00021917,2]
[346122950,1734721849106,-500.0,0.00021917,6]
[346122951,1734721849116,-290.287194,0.00021917,2]
[346122952,1734721849125,-500.0,0.00021917,6]
[346122953,1734721849134,-500.0,0.00021917,6]
[346122954,1734721849144,-500.0,0.00021917,6]
[346122955,1734721849153,-500.0,0.00021917,6]
[346122956,1734721849162,-420.114704,0.00021917,2]
[346122957,1734721849173,-420.114704,0.00021917,2]
[346122958,1734721849183,-420.114704,0.00021917,2]
[346122959,1734721849192,-588.91,0.00021917,6]
[346122960,1734721849201,-420.114704,0.00021917,2]
[346122961,1734721849210,-420.114704,0.00021917,2]
[346122962,1734721849219,-420.114704,0.00021917,2]
[346122963,1734721849229,-490.09842769,0.00021917,6]
[346122964,1734721849239,-500.0,0.00021917,6]
[346122965,1734721849248,-500.0,0.00021917,6]
[346122966,1734721849258,-500.0,0.00021917,6]
[346122967,1734721849268,-500.0,0.00021917,6]
[346122968,1734721849277,-7977.06,0.00021917,6]
[346122969,1734721849287,-500.0,0.00021917,6]
[346122970,1734721849296,-2130.72,0.00021917,2]
[346122971,1734721849306,-500.0,0.00021917,6]
[346122972,1734721849315,-500.0,0.00021917,6]
[346122973,1734721849325,-4524.3,0.00021917,6]
[346122974,1734721849335,-1234.48,0.00021917,6]
[346122975,1734721849344,-500.0,0.00021917,6]
[346122976,1734721849354,-7279.51,0.00021917,6]
[346122977,1734721849364,-500.0,0.00021917,6]
[346122978,1734721849377,-1585.79,0.00021917,6]
[346122979,1734721849387,-500.0,0.00021917,6]
[346122980,1734721849396,-500.0,0.00021917,6]
[346122981,1734721849406,-500.0,0.00021917,6]
[346122982,1734721849417,-500.0,0.00021917,6]
[346122983,1734721849426,-611.11,0.00021917,6]
[346122984,1734721849435,-765.71,0.00021917,6]
[346122985,1734721849445,-689.57,0.00021917,6]
[346122986,1734721849456,-2627.69,0.00021917,6]
[346122987,1734721849465,-500.0,0.00021917,6]
[346122988,1734721849475,-500.0,0.00021917,6]
[346122989,1734721849484,-500.0,0.00021917,6]
[346122990,1734721849493,-500.0,0.00021917,6]
[346122991,1734721849503,-500.0,0.00021917,6]
[346122992,1734721849512,-388.76919749,0.00021917,6]
[346122993,1734721849521,-1208.21,0.00021917,6]
[346122994,1734721849530,-500.0,0.00021917,6]
[346122995,1734721849539,-1603.33,0.00021917,6]
[346122996,1734721849549,-500.0,0.00021917,6]
[346122997,1734721849559,-500.0,0.00021917,6]
[346122998,1734721849568,-516.90319376,0.00021917,6]
[346122999,1734721849577,-500.0,0.00021917,6]
[346123000,1734721849586,-812.88,0.00021917,6]
[346123001,1734721849703,-659.27,0.00021917,6]
[346123002,1734721849713,-500.0,0.00021917,6]
[346123003,1734721849725,-867.15,0.00021917,6]
[346123004,1734721849737,-151.0,0.00021917,2]
[346123005,1734721849748,-151.0,0.00021917,2]
[346123006,1734721849758,-151.0,0.00021917,2]
[346123007,1734721849768,-702.08,0.00021917,6]
[346123008,1734721849777,-500.0,0.00021917,6]
[346123009,1734721849787,-151.0,0.00021917,2]
[346123010,1734721849798,-500.0,0.00021917,6]
[346123011,1734721849808,-151.0,0.00021917,2]
[346123012,1734721849817,-151.0,0.00021917,2]
[346123013,1734721849827,-500.0,0.00021917,6]
[346123014,1734721849836,-500.0,0.00021917,6]
[346123015,1734721849845,-2253.42,0.00021917,2]
[346123016,1734721849855,-500.0,0.00021917,6]
[346123017,1734721849864,-151.0,0.00021917,2]
[346123018,1734721849874,-500.0,0.00021917,6]
[346123019,1734721849883,-151.0,0.00021917,2]
[346123020,1734721849893,-151.0,0.00021917,2]
[346123021,1734721849902,-516.81,0.00021917,6]
[346123022,1734721849911,-4273.92,0.00021917,6]
[346123023,1734721849921,-500.0,0.00021917,6]
[346123024,1734721849930,-500.0,0.00021917,6]
[346123025,1734721849939,-151.0,0.00021917,2]
[346123026,1734721849949,-151.0,0.00021917,2]
[346123027,1734721849958,-500.0,0.00021917,6]
[346123028,1734721849967,-500.0,0.00021917,6]
[346123029,1734721849977,-500.0,0.00021917,6]
[346123030,1734721849987,-532.69738055,0.00021917,6]
[346123031,1734721849996,-500.0,0.00021917,6]
[346123032,1734721850005,-1867.83,0.00021917,6]
[346123033,1734721850014,-151.0,0.00021917,2]
[346123034,1734721850023,-151.0,0.00021917,2]
[346123035,1734721850033,-500.0,0.00021917,6]
[346123036,1734721850042,-763.85,0.00021917,6]
[346123037,1734721850053,-834.92,0.00021917,6]
[346123038,1734721850062,-151.0,0.00021917,2]
[346123039,1734721850072,-500.0,0.00021917,6]
[346123040,1734721850081,-500.0,0.00021917,6]
[346123041,1734721850090,-12837.17,0.00021917,6]
[346123042,1734721850101,-151.0,0.00021917,2]
[346123043,1734721850111,-217.073814,0.00021917,2]
[346123044,1734721850121,-500.0,0.00021917,6]
[346123045,1734721850131,-1728.9,0.00021917,6]
[346123046,1734721850140,-500.0,0.00021917,6]
[346123047,1734721850150,-500.0,0.00021917,6]
[346123048,1734721850161,-500.0,0.00021917,6]
[346123049,1734721850170,-500.0,0.00021917,6]
[346123050,1734721850180,-500.0,0.00021917,6]
[346123051,1734721850192,-500.0,0.00021917,6]
[346123052,1734721850202,-58623.44,0.00021917,6]
[346123053,1734721850211,-500.0,0.00021917,6]
[346123054,1734721850223,-582.15,0.00021917,6]
[346123055,1734721850234,-500.0,0.00021917,6]
[346123056,1734721850244,-2003.36,0.00021917,6]
[346123057,1734721850255,-500.0,0.00021917,6]
[346123058,1734721850264,-500.0,0.00021917,6]
[346123059,1734721850274,-500.0,0.00021917,6]
[346123060,1734721850284,-4251.31,0.00021917,6]
[346123061,1734721850294,-500.0,0.00021917,6]
[346123062,1734721850306,-500.0,0.00021917,6]
[346123063,1734721850315,-748.6,0.00021917,6]
[346123064,1734721850324,-500.0,0.00021917,6]
[346123065,1734721850333,-657.37,0.00021917,6]
[346123066,1734721850343,-3782.21,0.00021917,6]
[346123067,1734721850354,-500.0,0.00021917,6]
[346123068,1734721850363,-500.0,0.00021917,6]
[346123069,1734721850376,-7102.06,0.00021917,6]
[346123070,1734721850385,-500.0,0.00021917,6]
[346123071,1734721850395,-1101.43,0.00021917,6]
[346123072,1734721850406,-878.4,0.00021917,6]
[346123073,1734721850418,-500.0,0.00021917,6]
[346123074,1734721850427,-500.0,0.00021917,6]
[346123075,1734721850437,-1903.13,0.00021917,6]
[346123076,1734721850446,-500.0,0.00021917,6]
[346123077,1734721850456,-306.024083,0.00021917,2]
[346123078,1734721850465,-306.024083,0.00021917,2]
[346123079,1734721850474,-869.57,0.00021917,7]
[346123080,1734721850483,-306.024083,0.00021917,2]
[346123081,1734721850492,-500.0,0.00021917,6]
[346123082,1734721850501,-151.0,0.00021917,2]
[346123083,1734721850510,-151.0,0.00021917,2]
[346123084,1734721850519,-151.0,0.00021917,2]
[346123085,1734721850529,-500.0,0.00021917,6]
[346123086,1734721850538,-693.64,0.00021917,6]
[346123087,1734721850547,-306.024083,0.00021917,2]
[346123088,1734721850556,-306.024083,0.00021917,2]
[346123089,1734721850565,-306.024083,0.00021917,2]
[346123090,1734721850575,-151.0,0.00021917,2]
[346123091,1734721850584,-500.0,0.00021917,6]
[346123092,1734721850593,-151.0,0.00021917,2]
[346123093,1734721850603,-151.0,0.00021917,2]
[346123094,1734721850612,-500.0,0.00021917,6]
[346123095,1734721850621,-503.25233148,0.00021917,2]
[346123096,1734721850631,-500.0,0.00021917,6]
[346123097,1734721850640,-558.08,0.00021917,6]
[346123098,1734721850649,-500.0,0.00021917,6]
[346123099,1734721850659,-500.0,0.00021917,6]
[346123100,1734721850668,-500.0,0.00021917,6]
[346123101,1734721850678,-500.0,0.00021917,6]
[346123102,1734721850687,-500.0,0.00021917,6]
[346123103,1734721850697,-1280.26,0.00021917,6]
[346123104,1734721850706,-694.6,0.00021917,6]
[346123105,1734721850715,-2406.73,0.00021917,6]
[346123106,1734721850724,-500.0,0.00021917,6]
[346123107,1734721850733,-500.0,0.00021917,6]
[346123108,1734721850743,-679.59,0.00021917,6]
[346123109,1734721850753,-1911.49,0.00021917,6]
[346123110,1734721850763,-598.49,0.00021917,6]
[346123111,1734721850774,-4514.25,0.00021917,6]
[346123112,1734721850783,-500.0,0.00021917,6]
[346123113,1734721850792,-159.21893,0.00021917,2]
[346123114,1734721850802,-159.21893,0.00021917,2]
[346123115,1734721850812,-500.0,0.00021917,6]
[346123116,1734721850822,-159.21893,0.00021917,2]
[346123117,1734721850831,-253.190322,0.00021917,2]
[346123118,1734721850840,-253.190322,0.00021917,2]
[346123119,1734721850850,-253.190322,0.00021917,2]
[346123120,1734721850860,-500.0,0.00021917,6]
[346123121,1734721850869,-159.21893,0.00021917,2]
[346123122,1734721850878,-500.0,0.00021917,6]
[346123123,1734721850887,-159.21893,0.00021917,2]
[346123124,1734721850897,-159.21893,0.00021917,2]
[346123125,1734721850906,-500.0,0.00021917,6]
[346123126,1734721850916,-253.190322,0.00021917,2]
[346123127,1734721850925,-253.190322,0.00021917,2]
[346123128,1734721850936,-253.190322,0.00021917,2]
[346123129,1734721850946,-1824.35,0.00021917,6]
[346123130,1734721850957,-2092.27,0.00021917,6]
[346123131,1734721850967,-152.110397,0.00021918,2]
[346123132,1734721850976,-151.0,0.00021918,2]
[346123133,1734721850986,-241.27982,0.00021918,2]
[346123134,1734721850995,-282.275184,0.00021918,2]
[346123135,1734721851004,-282.275184,0.00021918,2]
[346123136,1734721851014,-282.275184,0.00021918,2]
[346123137,1734721851023,-282.275184,0.00021918,2]
[346123138,1734721851032,-282.275184,0.00021918,2]
[346123139,1734721851042,-282.275184,0.00021918,2]
[346123140,1734721851051,-500.0,0.00021918,7]
[346123141,1734721851061,-500.0,0.00021918,7]
[346123142,1734721851070,-150.09,0.00021918,2]
[346123143,1734721851079,-150.09,0.00021918,7]
[346123144,1734721851088,-150.09,0.00021918,7]
[346123145,1734721851097,-150.09,0.00021918,7]
[346123146,1734721851106,-150.12,0.00021918,7]
[346123147,1734721851116,-231.02564149,0.00021918,7]
[346123148,1734721851125,-153.0,0.00021968,2]
[346123149,1734721851134,-214.0101375,0.00021968,2]
[346123150,1734721851145,-305.4766362,0.00021968,2]
[346123151,1734721851154,-298.18851293,0.00021973,2]
[346123152,1734721851163,-500.0,0.00021973,2]